[Event "Late-Titled-Tuesday-Blitz-January-16-2024"]
[Site "Chess.com"]
[Date "2024.01.16"]
[Round "9"]
[White "jmpion"]
[Black "PepeCuenca"]
[Result "0-1"]
[WhiteElo "2537"]
[BlackElo "2692"]
[TimeControl "180+1"]
[EndTime "15:46:32 PST"]
[Termination "PepeCuenca won on time"]

1. e4 {[%clk 0:03:00.9]} 1... c5 {[%clk 0:02:57.3]} 2. Nf3 {[%clk 0:03:01.1]}
2... Nc6 {[%clk 0:02:56.4]} 3. Bb5 {[%clk 0:03:00.7]} 3... e5 {[%clk 0:02:56.1]}
4. Bxc6 {[%clk 0:02:46.9]} 4... dxc6 {[%clk 0:02:54.7]} 5. d3 {[%clk 0:02:44.2]}
5... f6 {[%clk 0:02:51.8]} 6. O-O {[%clk 0:02:44]} 6... Be6 {[%clk 0:02:46.6]}
7. a3 {[%clk 0:02:44]} 7... Bd6 {[%clk 0:02:45.4]} 8. b4 {[%clk 0:02:25.6]} 8...
cxb4 {[%clk 0:02:44.1]} 9. d4 {[%clk 0:02:25.1]} 9... exd4 {[%clk 0:02:32.8]}
10. Nxd4 {[%clk 0:02:19.9]} 10... Bc4 {[%clk 0:02:27.1]} 11. Qg4 {[%clk
0:01:39.1]} 11... Be5 {[%clk 0:01:39.4]} 12. Rd1 {[%clk 0:00:46.7]} 12... Bxd4
{[%clk 0:01:25.7]} 13. Be3 {[%clk 0:00:45.1]} 13... Qe7 {[%clk 0:01:10.4]} 14.
Rxd4 {[%clk 0:00:41.7]} 14... Be6 {[%clk 0:01:08.9]} 15. Qg3 {[%clk 0:00:34.8]}
15... bxa3 {[%clk 0:01:05.5]} 16. Rxa3 {[%clk 0:00:23.9]} 16... a6 {[%clk
0:00:52.1]} 17. Rad3 {[%clk 0:00:21.2]} 17... h5 {[%clk 0:00:52.2]} 18. Qg6+
{[%clk 0:00:17.5]} 18... Qf7 {[%clk 0:00:48.9]} 19. Qg3 {[%clk 0:00:14.8]} 19...
Ne7 {[%clk 0:00:47.2]} 20. Nd2 {[%clk 0:00:08.6]} 20... O-O {[%clk 0:00:44.2]}
21. f4 {[%clk 0:00:08.9]} 21... f5 {[%clk 0:00:24.5]} 22. Rd6 {[%clk 0:00:05.6]}
22... fxe4 {[%clk 0:00:23.9]} 23. Nxe4 {[%clk 0:00:06.5]} 23... Nf5 {[%clk
0:00:23.3]} 24. Ng5 {[%clk 0:00:03.8]} 24... Nxg3 {[%clk 0:00:21.7]} 25. Nxf7
{[%clk 0:00:03.7]} 25... Ne2+ {[%clk 0:00:22.1]} 26. Kf2 {[%clk 0:00:04.2]}
26... Bxf7 {[%clk 0:00:21.9]} 27. Kxe2 {[%clk 0:00:04.2]} 27... Bc4 {[%clk
0:00:22.6]} 28. Kf2 {[%clk 0:00:03.3]} 28... Bxd3 {[%clk 0:00:22.9]} 29. Rxd3
{[%clk 0:00:03.1]} 29... Rad8 {[%clk 0:00:23.2]} 30. Rb3 {[%clk 0:00:03.8]}
30... Rd7 {[%clk 0:00:23.6]} 31. Bc5 {[%clk 0:00:04.4]} 31... Rf5 {[%clk
0:00:21.5]} 32. Be3 {[%clk 0:00:04.1]} 32... Rb5 {[%clk 0:00:20.8]} 33. Ra3
{[%clk 0:00:03.6]} 33... Kf7 {[%clk 0:00:20.6]} 34. g3 {[%clk 0:00:03.5]} 34...
Rb2 {[%clk 0:00:21]} 35. Rc3 {[%clk 0:00:03.2]} 35... a5 {[%clk 0:00:20.8]} 36.
h3 {[%clk 0:00:02.2]} 36... a4 {[%clk 0:00:21.2]} 37. g4 {[%clk 0:00:02.8]}
37... hxg4 {[%clk 0:00:20.4]} 38. hxg4 {[%clk 0:00:03.7]} 38... Rb5 {[%clk
0:00:16.7]} 39. f5 {[%clk 0:00:03.7]} 39... Ra5 {[%clk 0:00:16.8]} 40. Bb6
{[%clk 0:00:03.8]} 40... Ra6 {[%clk 0:00:14.1]} 41. Bc5 {[%clk 0:00:04.4]} 41...
Rd5 {[%clk 0:00:10.8]} 42. Ke3 {[%clk 0:00:02.7]} 42... Rxc5 {[%clk 0:00:09.7]}
0-1

[Event "Late-Titled-Tuesday-Blitz-January-16-2024"]
[Site "Chess.com"]
[Date "2024.01.16"]
[Round "9"]
[White "Zhigalko_Sergei"]
[Black "dropstoneDP"]
[Result "1/2-1/2"]
[WhiteElo "2989"]
[BlackElo "3023"]
[TimeControl "180+1"]
[EndTime "15:46:34 PST"]
[Termination "Game drawn by repetition"]

1. e4 {[%clk 0:03:00.9]} 1... e5 {[%clk 0:03:00.5]} 2. Nf3 {[%clk 0:03:01.3]}
2... Nf6 {[%clk 0:03:01.1]} 3. Nxe5 {[%clk 0:03:00.9]} 3... d6 {[%clk
0:03:01.6]} 4. Nf3 {[%clk 0:03:01.6]} 4... Nxe4 {[%clk 0:03:02.1]} 5. Nc3 {[%clk
0:03:02.5]} 5... Nxc3 {[%clk 0:03:02.5]} 6. dxc3 {[%clk 0:03:03.4]} 6... Be7
{[%clk 0:03:02.9]} 7. Be3 {[%clk 0:03:04.3]} 7... O-O {[%clk 0:03:03.2]} 8. Qd2
{[%clk 0:03:05.1]} 8... Nd7 {[%clk 0:03:03.8]} 9. O-O-O {[%clk 0:03:05.6]} 9...
Nf6 {[%clk 0:03:03.9]} 10. Bd3 {[%clk 0:02:58.8]} 10... c5 {[%clk 0:03:03.4]}
11. Kb1 {[%clk 0:02:50.3]} 11... Be6 {[%clk 0:02:53.2]} 12. Ng5 {[%clk
0:02:46.2]} 12... Bd5 {[%clk 0:02:45.6]} 13. Nxh7 {[%clk 0:02:21.5]} 13... Bxa2+
{[%clk 0:02:11.5]} 14. Kxa2 {[%clk 0:02:21.3]} 14... Nxh7 {[%clk 0:02:11.9]} 15.
Qe2 {[%clk 0:02:07.4]} 15... Re8 {[%clk 0:01:49.6]} 16. Bxc5 {[%clk 0:01:49.1]}
16... Qa5+ {[%clk 0:01:30.8]} 17. Ba3 {[%clk 0:01:48.5]} 17... Nf6 {[%clk
0:01:31.4]} 18. Bb5 {[%clk 0:01:41.2]} 18... Red8 {[%clk 0:01:20.2]} 19. Kb1
{[%clk 0:01:08]} 19... Bf8 {[%clk 0:01:18.9]} 20. Rhe1 {[%clk 0:01:00]} 20... d5
{[%clk 0:01:15.3]} 21. Bxf8 {[%clk 0:00:56.1]} 21... Rxf8 {[%clk 0:01:16.2]} 22.
Bd3 {[%clk 0:00:49.3]} 22... b5 {[%clk 0:01:16]} 23. Qe7 {[%clk 0:00:43.8]}
23... Qb6 {[%clk 0:01:14.4]} 24. Qe3 {[%clk 0:00:43.3]} 24... Qb7 {[%clk
0:01:08.4]} 25. Qc5 {[%clk 0:00:36.8]} 25... Rfc8 {[%clk 0:01:06]} 26. Qxb5
{[%clk 0:00:21.3]} 26... Qc7 {[%clk 0:01:06.4]} 27. Qa4 {[%clk 0:00:21.5]} 27...
Rab8 {[%clk 0:01:03.4]} 28. Qd4 {[%clk 0:00:18.6]} 28... a5 {[%clk 0:01:01.9]}
29. Re3 {[%clk 0:00:15.2]} 29... a4 {[%clk 0:00:51.5]} 30. Rg3 {[%clk
0:00:13.1]} 30... a3 {[%clk 0:00:45.4]} 31. b3 {[%clk 0:00:12.5]} 31... a2+
{[%clk 0:00:42.8]} 32. Kb2 {[%clk 0:00:11.1]} 32... Ra8 {[%clk 0:00:36.7]} 33.
Ra1 {[%clk 0:00:04.8]} 33... Qa5 {[%clk 0:00:33.9]} 34. Qb4 {[%clk 0:00:04]}
34... Qa7 {[%clk 0:00:29.4]} 35. Rf3 {[%clk 0:00:04.4]} 35... Ng4 {[%clk
0:00:22.9]} 36. Qa4 {[%clk 0:00:04]} 36... Qc5 {[%clk 0:00:20.1]} 37. Qb4 {[%clk
0:00:04.3]} 37... Qa7 {[%clk 0:00:20]} 38. Qa4 {[%clk 0:00:04.7]} 38... Qc5
{[%clk 0:00:12.2]} 39. Qb4 {[%clk 0:00:05]} 39... Qa7 {[%clk 0:00:07.5]} 1/2-1/2

[Event "Late-Titled-Tuesday-Blitz-January-16-2024"]
[Site "Chess.com"]
[Date "2024.01.16"]
[Round "9"]
[White "GothamChess"]
[Black "RuleOfTwo"]
[Result "1-0"]
[WhiteElo "2760"]
[BlackElo "2578"]
[TimeControl "180+1"]
[EndTime "15:46:38 PST"]
[Termination "GothamChess won by resignation"]

1. e4 {[%clk 0:03:00.9]} 1... b6 {[%clk 0:02:59.5]} 2. Nc3 {[%clk 0:03:00.8]}
2... Bb7 {[%clk 0:02:59.8]} 3. Bc4 {[%clk 0:03:01.1]} 3... e6 {[%clk 0:03:00.3]}
4. Bb3 {[%clk 0:02:58.2]} 4... Nf6 {[%clk 0:02:58.7]} 5. d3 {[%clk 0:02:57.1]}
5... c5 {[%clk 0:02:54.4]} 6. f4 {[%clk 0:02:54]} 6... Nc6 {[%clk 0:02:53.5]} 7.
Nf3 {[%clk 0:02:53.6]} 7... d5 {[%clk 0:02:49.2]} 8. O-O {[%clk 0:02:52.2]} 8...
Be7 {[%clk 0:02:43.4]} 9. Qe1 {[%clk 0:02:44.8]} 9... Nd4 {[%clk 0:02:32.6]} 10.
Nxd4 {[%clk 0:02:22.7]} 10... cxd4 {[%clk 0:02:33.5]} 11. Ba4+ {[%clk 0:02:23]}
11... Kf8 {[%clk 0:02:23]} 12. e5 {[%clk 0:02:06.7]} 12... dxc3 {[%clk
0:02:20.3]} 13. exf6 {[%clk 0:02:06.2]} 13... Bc5+ {[%clk 0:02:01.9]} 14. Kh1
{[%clk 0:02:02.2]} 14... Qxf6 {[%clk 0:01:51.7]} 15. Qxc3 {[%clk 0:02:02.2]}
15... d4 {[%clk 0:01:35.4]} 16. Qe1 {[%clk 0:01:58.3]} 16... Qg6 {[%clk
0:01:28.4]} 17. Qe2 {[%clk 0:01:51]} 17... h5 {[%clk 0:01:26.8]} 18. Bd7 {[%clk
0:01:03]} 18... Qf5 {[%clk 0:00:42.6]} 19. Kg1 {[%clk 0:00:31.9]} 19... h4
{[%clk 0:00:28.6]} 20. h3 {[%clk 0:00:29]} 20... Rh6 {[%clk 0:00:25.7]} 21. Rf2
{[%clk 0:00:29.7]} 21... Rg6 {[%clk 0:00:25.9]} 22. Kf1 {[%clk 0:00:30.3]} 22...
Qd5 {[%clk 0:00:18.6]} 23. Ba4 {[%clk 0:00:29.7]} 23... Qf5 {[%clk 0:00:14.6]}
24. Bd2 {[%clk 0:00:27.5]} 24... Rg3 {[%clk 0:00:14.3]} 25. Qe5 {[%clk
0:00:22.3]} 25... Qxe5 {[%clk 0:00:09.6]} 26. fxe5 {[%clk 0:00:23.2]} 26... Ke7
{[%clk 0:00:09.5]} 27. b4 {[%clk 0:00:22.4]} 27... b5 {[%clk 0:00:07.4]} 28.
Bxb5 {[%clk 0:00:21.1]} 28... Bb6 {[%clk 0:00:08]} 29. a4 {[%clk 0:00:19.5]}
29... Rc8 {[%clk 0:00:05.2]} 30. Bc4 {[%clk 0:00:19.8]} 30... Bd5 {[%clk
0:00:03.5]} 31. Bxd5 {[%clk 0:00:20]} 31... exd5 {[%clk 0:00:04.4]} 32. a5
{[%clk 0:00:19.1]} 32... Bc7 {[%clk 0:00:05]} 33. Bf4 {[%clk 0:00:13.7]} 33...
Rg6 {[%clk 0:00:05.3]} 34. Rb1 {[%clk 0:00:08.3]} 34... Re6 {[%clk 0:00:05.5]}
35. Re2 {[%clk 0:00:08.1]} 35... Kd7 {[%clk 0:00:03.8]} 36. Kf2 {[%clk 0:00:07]}
36... a6 {[%clk 0:00:03.5]} 37. Kf3 {[%clk 0:00:07.3]} 37... Kc6 {[%clk
0:00:03.7]} 38. Bg5 {[%clk 0:00:04.6]} 38... Rce8 {[%clk 0:00:04.1]} 39. Bxh4
{[%clk 0:00:04.8]} 39... Bxe5 {[%clk 0:00:03.6]} 40. g4 {[%clk 0:00:03.4]} 40...
Bd6 {[%clk 0:00:03.8]} 41. Rbe1 {[%clk 0:00:03.7]} 41... Rxe2 {[%clk 0:00:03.1]}
42. Rxe2 {[%clk 0:00:04.6]} 42... Rb8 {[%clk 0:00:03.3]} 43. Be1 {[%clk
0:00:04]} 43... Bxb4 {[%clk 0:00:03.1]} 44. Bxb4 {[%clk 0:00:04.7]} 44... Rxb4
{[%clk 0:00:03.6]} 45. Re7 {[%clk 0:00:05.4]} 45... Rb2 {[%clk 0:00:03.1]} 46.
Rxf7 {[%clk 0:00:05]} 46... Kb5 {[%clk 0:00:02.7]} 47. Rb7+ {[%clk 0:00:05.1]}
1-0

[Event "Late-Titled-Tuesday-Blitz-January-16-2024"]
[Site "Chess.com"]
[Date "2024.01.16"]
[Round "9"]
[White "nfds"]
[Black "LUISMIGUELOV"]
[Result "1-0"]
[WhiteElo "2493"]
[BlackElo "2194"]
[TimeControl "180+1"]
[EndTime "15:46:39 PST"]
[Termination "nfds won by resignation"]

1. a3 {[%clk 0:02:47.1]} 1... d5 {[%clk 0:02:58.4]} 2. Nf3 {[%clk 0:02:45.8]}
2... Bg4 {[%clk 0:02:54]} 3. e3 {[%clk 0:02:41.9]} 3... h5 {[%clk 0:02:52.9]} 4.
Be2 {[%clk 0:02:40.1]} 4... Nd7 {[%clk 0:02:52]} 5. h3 {[%clk 0:02:35]} 5... Bf5
{[%clk 0:02:51.2]} 6. b4 {[%clk 0:02:29.3]} 6... e6 {[%clk 0:02:48.6]} 7. Bb2
{[%clk 0:02:29]} 7... Ngf6 {[%clk 0:02:48.3]} 8. d3 {[%clk 0:02:27.3]} 8... Be7
{[%clk 0:02:46.9]} 9. Nbd2 {[%clk 0:02:25.8]} 9... a5 {[%clk 0:02:40]} 10. b5
{[%clk 0:02:16.6]} 10... b6 {[%clk 0:02:35.1]} 11. Nd4 {[%clk 0:02:15.8]} 11...
Nb8 {[%clk 0:02:22]} 12. Nxf5 {[%clk 0:02:07.3]} 12... exf5 {[%clk 0:02:21.2]}
13. Nf3 {[%clk 0:01:58.3]} 13... c5 {[%clk 0:02:11]} 14. bxc6 {[%clk 0:01:54.8]}
14... Nxc6 {[%clk 0:02:10.9]} 15. O-O {[%clk 0:01:48.5]} 15... O-O {[%clk
0:02:08.9]} 16. Rb1 {[%clk 0:01:48.5]} 16... Rb8 {[%clk 0:02:01.6]} 17. a4
{[%clk 0:01:41.1]} 17... g6 {[%clk 0:01:54.7]} 18. Nd4 {[%clk 0:01:34.3]} 18...
Nxd4 {[%clk 0:01:53.6]} 19. Bxd4 {[%clk 0:01:33.7]} 19... Bc5 {[%clk 0:01:52.6]}
20. Be5 {[%clk 0:01:31.9]} 20... Bd6 {[%clk 0:01:48.3]} 21. Ba1 {[%clk
0:01:31.4]} 21... Qe7 {[%clk 0:01:44.7]} 22. Rb5 {[%clk 0:01:28.5]} 22... Be5
{[%clk 0:01:43.4]} 23. Bxe5 {[%clk 0:01:23.9]} 23... Qxe5 {[%clk 0:01:42.5]} 24.
Qa1 {[%clk 0:01:24.8]} 24... Qxa1 {[%clk 0:01:38]} 25. Rxa1 {[%clk 0:01:25.7]}
25... Rb7 {[%clk 0:01:36.3]} 26. Rab1 {[%clk 0:01:25.3]} 26... Rfb8 {[%clk
0:01:36.7]} 27. Bf3 {[%clk 0:01:24.2]} 27... Kg7 {[%clk 0:01:29.8]} 28. c4
{[%clk 0:01:21.3]} 28... Rd7 {[%clk 0:01:26.3]} 29. Bxd5 {[%clk 0:00:48.1]}
29... Nxd5 {[%clk 0:01:24.9]} 30. cxd5 {[%clk 0:00:48.5]} 30... Rd6 {[%clk
0:01:23.1]} 31. e4 {[%clk 0:00:39.3]} 31... Kf6 {[%clk 0:01:18.9]} 32. f4 {[%clk
0:00:37.7]} 32... fxe4 {[%clk 0:01:07.3]} 33. dxe4 {[%clk 0:00:38.6]} 33... Ke7
{[%clk 0:00:56.2]} 34. e5 {[%clk 0:00:39.1]} 34... Rd7 {[%clk 0:00:55.9]} 35.
d6+ {[%clk 0:00:39.6]} 35... Ke6 {[%clk 0:00:54]} 36. Kf2 {[%clk 0:00:33.7]}
36... g5 {[%clk 0:00:53.3]} 37. g3 {[%clk 0:00:27.4]} 37... Kf5 {[%clk
0:00:51.4]} 38. Kf3 {[%clk 0:00:26.2]} 38... gxf4 {[%clk 0:00:42.2]} 39. gxf4
{[%clk 0:00:21.3]} 39... f6 {[%clk 0:00:42.5]} 40. Re1 {[%clk 0:00:16]} 40...
fxe5 {[%clk 0:00:41.1]} 41. Rbxe5+ {[%clk 0:00:10.4]} 41... Kf6 {[%clk
0:00:30.4]} 42. Re6+ {[%clk 0:00:11.3]} 42... Kf7 {[%clk 0:00:29]} 43. R1e5
{[%clk 0:00:11.2]} 43... Rbd8 {[%clk 0:00:25.2]} 44. Re7+ {[%clk 0:00:09.4]}
44... Rxe7 {[%clk 0:00:23.4]} 45. dxe7 {[%clk 0:00:06.9]} 45... Re8 {[%clk
0:00:22.2]} 46. Ke4 {[%clk 0:00:07.1]} 46... Rxe7 {[%clk 0:00:22.5]} 47. Rxe7+
{[%clk 0:00:08]} 47... Kxe7 {[%clk 0:00:21.9]} 48. Ke5 {[%clk 0:00:07]} 48... b5
{[%clk 0:00:20]} 49. axb5 {[%clk 0:00:07.9]} 49... a4 {[%clk 0:00:20.3]} 50. Kd4
{[%clk 0:00:08.1]} 50... a3 {[%clk 0:00:17.3]} 51. Kc3 {[%clk 0:00:08]} 51... a2
{[%clk 0:00:17.8]} 52. Kb2 {[%clk 0:00:08.3]} 1-0

[Event "Late-Titled-Tuesday-Blitz-January-16-2024"]
[Site "Chess.com"]
[Date "2024.01.16"]
[Round "9"]
[White "sergeikim"]
[Black "cthulhuuu"]
[Result "1/2-1/2"]
[WhiteElo "2552"]
[BlackElo "2448"]
[TimeControl "180+1"]
[EndTime "15:46:40 PST"]
[Termination "Game drawn by stalemate"]

1. d4 {[%clk 0:03:00.9]} 1... Nf6 {[%clk 0:02:59.7]} 2. c4 {[%clk 0:03:00.8]}
2... e5 {[%clk 0:02:56.7]} 3. dxe5 {[%clk 0:02:58.2]} 3... Ng4 {[%clk 0:02:57]}
4. e4 {[%clk 0:02:57.5]} 4... Nxe5 {[%clk 0:02:56.9]} 5. f4 {[%clk 0:02:54.3]}
5... Nec6 {[%clk 0:02:56.8]} 6. Be3 {[%clk 0:02:54.2]} 6... a5 {[%clk
0:02:54.9]} 7. Nc3 {[%clk 0:02:53.6]} 7... Na6 {[%clk 0:02:55.5]} 8. Nf3 {[%clk
0:02:53.4]} 8... Bc5 {[%clk 0:02:55.5]} 9. Qd2 {[%clk 0:02:53.1]} 9... O-O
{[%clk 0:02:51.2]} 10. Bd3 {[%clk 0:02:53.1]} 10... d6 {[%clk 0:02:51.2]} 11.
O-O {[%clk 0:02:52.9]} 11... Bg4 {[%clk 0:02:43.5]} 12. Nd5 {[%clk 0:02:49]}
12... Nab4 {[%clk 0:02:21.8]} 13. Bb1 {[%clk 0:02:41.8]} 13... Re8 {[%clk
0:02:01.8]} 14. Nd4 {[%clk 0:02:36.6]} 14... Nxd4 {[%clk 0:01:56.3]} 15. Bxd4
{[%clk 0:02:36.7]} 15... Nxd5 {[%clk 0:01:38.7]} 16. cxd5 {[%clk 0:02:31.9]}
16... Bxd4+ {[%clk 0:01:15.1]} 17. Qxd4 {[%clk 0:02:31]} 17... Qf6 {[%clk
0:01:14.9]} 18. Qxf6 {[%clk 0:02:28.2]} 18... gxf6 {[%clk 0:01:14.8]} 19. Bd3
{[%clk 0:02:25.6]} 19... f5 {[%clk 0:01:05]} 20. exf5 {[%clk 0:01:56.4]} 20...
Be2 {[%clk 0:01:02.9]} 21. Bxe2 {[%clk 0:01:53.8]} 21... Rxe2 {[%clk 0:01:03.8]}
22. Rf2 {[%clk 0:01:53.9]} 22... Rae8 {[%clk 0:01:00.1]} 23. g4 {[%clk
0:01:51.1]} 23... R8e4 {[%clk 0:00:53]} 24. Rc1 {[%clk 0:01:44.8]} 24... Re1+
{[%clk 0:00:37.6]} 25. Rxe1 {[%clk 0:01:40]} 25... Rxe1+ {[%clk 0:00:38.5]} 26.
Kg2 {[%clk 0:01:40.5]} 26... Rd1 {[%clk 0:00:36.9]} 27. Rc2 {[%clk 0:01:40]}
27... Rxd5 {[%clk 0:00:33.2]} 28. Rxc7 {[%clk 0:01:38.6]} 28... Rd2+ {[%clk
0:00:32.6]} 29. Kg3 {[%clk 0:01:39.1]} 29... Rxb2 {[%clk 0:00:32.7]} 30. f6
{[%clk 0:01:39]} 30... h6 {[%clk 0:00:32.8]} 31. h4 {[%clk 0:01:33.5]} 31... d5
{[%clk 0:00:19.1]} 32. h5 {[%clk 0:01:30.2]} 32... Rxa2 {[%clk 0:00:09.9]} 33.
Rxb7 {[%clk 0:01:29.9]} 33... Ra3+ {[%clk 0:00:10.4]} 34. Kh4 {[%clk 0:01:27.5]}
34... Ra4 {[%clk 0:00:10.7]} 35. Rb8+ {[%clk 0:01:25.2]} 35... Kh7 {[%clk
0:00:10.7]} 36. Rf8 {[%clk 0:01:24.9]} 36... Rxf4 {[%clk 0:00:10.9]} 37. Rxf7+
{[%clk 0:01:24.7]} 37... Kg8 {[%clk 0:00:11.1]} 38. Rg7+ {[%clk 0:01:21.1]}
38... Kh8 {[%clk 0:00:09]} 39. Rg6 {[%clk 0:01:19]} 39... Kh7 {[%clk 0:00:09.3]}
40. Kg3 {[%clk 0:01:17.4]} 40... Rf1 {[%clk 0:00:09.5]} 41. Rg7+ {[%clk
0:01:16.1]} 41... Kh8 {[%clk 0:00:09.6]} 42. Rf7 {[%clk 0:01:10.1]} 42... Kg8
{[%clk 0:00:07.2]} 43. Ra7 {[%clk 0:01:05.1]} 43... Rxf6 {[%clk 0:00:06.4]} 44.
Rxa5 {[%clk 0:01:04.8]} 44... Rd6 {[%clk 0:00:06.8]} 45. Kf3 {[%clk 0:00:59.6]}
45... Kg7 {[%clk 0:00:06.4]} 46. Kf4 {[%clk 0:00:58.2]} 46... Kf6 {[%clk
0:00:06.4]} 47. Ra3 {[%clk 0:00:52.3]} 47... d4 {[%clk 0:00:06.4]} 48. Rd3
{[%clk 0:00:52.7]} 48... Rd8 {[%clk 0:00:04.6]} 49. Ke4 {[%clk 0:00:48.1]} 49...
Kg5 {[%clk 0:00:04.6]} 50. Rxd4 {[%clk 0:00:47.2]} 50... Rxd4+ {[%clk
0:00:04.7]} 51. Kxd4 {[%clk 0:00:48.1]} 51... Kxg4 {[%clk 0:00:05]} 52. Ke3
{[%clk 0:00:48.4]} 52... Kxh5 {[%clk 0:00:05.3]} 53. Kf4 {[%clk 0:00:48.8]}
53... Kh4 {[%clk 0:00:05.7]} 54. Kf3 {[%clk 0:00:49.1]} 54... Kh3 {[%clk
0:00:06.1]} 55. Kf2 {[%clk 0:00:49.4]} 55... Kh2 {[%clk 0:00:06.5]} 56. Kf1
{[%clk 0:00:49.4]} 56... h5 {[%clk 0:00:06.8]} 57. Kf2 {[%clk 0:00:49.8]} 57...
h4 {[%clk 0:00:07.4]} 58. Kf1 {[%clk 0:00:50.1]} 58... h3 {[%clk 0:00:08]} 59.
Kf2 {[%clk 0:00:50.5]} 59... Kh1 {[%clk 0:00:08.6]} 60. Kf1 {[%clk 0:00:50.8]}
60... h2 {[%clk 0:00:09.1]} 61. Kf2 {[%clk 0:00:50.8]} 1/2-1/2

[Event "Late-Titled-Tuesday-Blitz-January-16-2024"]
[Site "Chess.com"]
[Date "2024.01.16"]
[Round "9"]
[White "frederiksvane"]
[Black "Grischuk"]
[Result "0-1"]
[WhiteElo "2895"]
[BlackElo "3069"]
[TimeControl "180+1"]
[EndTime "15:46:47 PST"]
[Termination "Grischuk won on time"]

1. e4 {[%clk 0:03:00.9]} 1... e5 {[%clk 0:03:00.2]} 2. Nf3 {[%clk 0:03:01.1]}
2... Nc6 {[%clk 0:03:00.3]} 3. Bb5 {[%clk 0:03:01.3]} 3... a6 {[%clk 0:02:59.6]}
4. Ba4 {[%clk 0:03:01.7]} 4... Nf6 {[%clk 0:02:59.5]} 5. O-O {[%clk 0:03:00.4]}
5... Be7 {[%clk 0:02:59.4]} 6. Bxc6 {[%clk 0:03:01]} 6... dxc6 {[%clk
0:02:59.2]} 7. d3 {[%clk 0:03:01.3]} 7... Nd7 {[%clk 0:02:55.2]} 8. Nc3 {[%clk
0:03:01.1]} 8... O-O {[%clk 0:02:48.3]} 9. a4 {[%clk 0:03:01.1]} 9... b6 {[%clk
0:02:39.3]} 10. Be3 {[%clk 0:02:59.5]} 10... c5 {[%clk 0:02:21]} 11. Nd5 {[%clk
0:02:25.4]} 11... Bd6 {[%clk 0:02:20.7]} 12. Nd2 {[%clk 0:02:25.4]} 12... Nb8
{[%clk 0:02:14.5]} 13. Nc4 {[%clk 0:02:22.3]} 13... Nc6 {[%clk 0:02:14.9]} 14.
a5 {[%clk 0:02:17.4]} 14... b5 {[%clk 0:02:10.3]} 15. Nxd6 {[%clk 0:02:17.5]}
15... cxd6 {[%clk 0:02:11.2]} 16. f4 {[%clk 0:01:40.8]} 16... exf4 {[%clk
0:02:10.2]} 17. Bxf4 {[%clk 0:01:40.9]} 17... Be6 {[%clk 0:02:06.3]} 18. Qd2
{[%clk 0:01:35.1]} 18... f6 {[%clk 0:01:58.7]} 19. Ne3 {[%clk 0:01:18.5]} 19...
Ra7 {[%clk 0:01:54]} 20. Kh1 {[%clk 0:01:17.8]} 20... Raf7 {[%clk 0:01:38.6]}
21. Bg3 {[%clk 0:01:17.7]} 21... Nd4 {[%clk 0:01:31.7]} 22. b4 {[%clk
0:01:07.7]} 22... Nc6 {[%clk 0:01:02.4]} 23. c3 {[%clk 0:00:35.5]} 23... Qd7
{[%clk 0:00:59.8]} 24. Nf5 {[%clk 0:00:16.8]} 24... Bxf5 {[%clk 0:00:54.5]} 25.
Rxf5 {[%clk 0:00:16.8]} 25... cxb4 {[%clk 0:00:46.6]} 26. Rd5 {[%clk 0:00:17.2]}
26... bxc3 {[%clk 0:00:46]} 27. Qxc3 {[%clk 0:00:18.1]} 27... Ne5 {[%clk
0:00:45.5]} 28. Qb4 {[%clk 0:00:16]} 28... Rd8 {[%clk 0:00:42.4]} 29. Rc1 {[%clk
0:00:16.1]} 29... h6 {[%clk 0:00:40.4]} 30. h3 {[%clk 0:00:16.4]} 30... Kh7
{[%clk 0:00:38.7]} 31. Kh2 {[%clk 0:00:14.9]} 31... Re7 {[%clk 0:00:35.5]} 32.
Qd4 {[%clk 0:00:15]} 32... Re6 {[%clk 0:00:25.8]} 33. Qb6 {[%clk 0:00:15.3]}
33... Rc8 {[%clk 0:00:26]} 34. Rxc8 {[%clk 0:00:08.6]} 34... Qxc8 {[%clk
0:00:26.9]} 35. Rxd6 {[%clk 0:00:09.5]} 35... Nd7 {[%clk 0:00:17.9]} 36. Qd4
{[%clk 0:00:09]} 36... Rxd6 {[%clk 0:00:17.7]} 37. Qxd6 {[%clk 0:00:09.8]} 37...
Qb7 {[%clk 0:00:11.8]} 38. d4 {[%clk 0:00:09.1]} 38... b4 {[%clk 0:00:11.9]} 39.
d5 {[%clk 0:00:07.1]} 39... b3 {[%clk 0:00:10.9]} 40. Qc6 {[%clk 0:00:07.5]}
40... Qb5 {[%clk 0:00:05.2]} 41. Qxb5 {[%clk 0:00:02.2]} 41... axb5 {[%clk
0:00:06.1]} 42. a6 {[%clk 0:00:02.8]} 42... b2 {[%clk 0:00:06.7]} 43. a7 {[%clk
0:00:03.4]} 43... Nb6 {[%clk 0:00:06.8]} 44. d6 {[%clk 0:00:01.2]} 44... b1=Q
{[%clk 0:00:06.5]} 45. d7 {[%clk 0:00:01.1]} 45... Qd3 {[%clk 0:00:06.1]} 0-1